[Event "Rapid Tournament (RAP)"]
[Site "Biel, Switzerland"]
[Date "2026.07.12"]
[Round "6.28"]
[White "Hornung, Hans"]
[Black "Carey, Michael"]
[Result "1-0"]
[TimeControl "15 + 5"]
[WhiteTitle "-"]
[BlackTitle "-"]
[WhiteFideId "4615140"]
[BlackFideId "30923760"]
[WhiteElo "2040"]
[BlackElo "1850"]

1. d4 {[%clk 00:15:05]} {[%emt 00:14:38]} Nf6 {[%clk 00:15:07]} {[%emt
00:00:09]} 2. Bg5 {[%clk 00:15:06]} {[%emt 00:00:04]} d5 {[%clk 00:15:11]}
{[%emt 00:00:02]} 3. e3 {[%clk 00:15:05]} {[%emt 00:00:05]} c5 {[%clk
00:14:54]} {[%emt 00:00:22]} 4. Bxf6 {[%clk 00:14:33]} {[%emt 00:00:38]} gxf6
{[%clk 00:14:51]} {[%emt 00:00:07]} 5. dxc5 {[%clk 00:14:17]} {[%emt 00:00:21]}
Qa5+ {[%clk 00:14:54]} {[%emt 00:00:02]} 6. Nc3 {[%clk 00:14:09]} {[%emt
00:00:13]} e6 {[%clk 00:14:33]} {[%emt 00:00:26]} 7. Bb5+ {[%clk 00:13:46]}
{[%emt 00:00:28]} Bd7 {[%clk 00:13:59]} {[%emt 00:00:39]} 8. Bxd7+ {[%clk
00:13:05]} {[%emt 00:00:46]} Nxd7 {[%clk 00:14:03]} {[%emt 00:00:02]} 9. a3
{[%clk 00:12:50]} {[%emt 00:00:20]} Qxc5 {[%clk 00:13:50]} {[%emt 00:00:18]} 10.
Nge2 {[%clk 00:12:37]} {[%emt 00:00:16]} Bg7 {[%clk 00:12:13]} {[%emt
00:01:43]} 11. O-O {[%clk 00:11:47]} {[%emt 00:00:54]} f5 {[%clk 00:11:37]}
{[%emt 00:00:41]} 12. Qd3 {[%clk 00:10:36]} {[%emt 00:01:17]} O-O {[%clk
00:10:03]} {[%emt 00:01:39]} 13. f4 {[%clk 00:10:06]} {[%emt 00:00:35]} Rfd8
{[%clk 00:08:51]} {[%emt 00:01:17]} 14. Nd4 {[%clk 00:09:28]} {[%emt 00:00:44]}
Nf6 {[%clk 00:08:27]} {[%emt 00:00:28]} 15. Rad1 {[%clk 00:09:14]} {[%emt
00:00:19]} Rac8 {[%clk 00:08:17]} {[%emt 00:00:15]} 16. Nce2 {[%clk 00:08:34]}
{[%emt 00:00:44]} a6 {[%clk 00:08:08]} {[%emt 00:00:15]} 17. c3 {[%clk
00:08:34]} {[%emt 00:00:05]} Ne4 {[%clk 00:08:12]} {[%emt 00:00:02]} 18. Ng3
{[%clk 00:08:23]} {[%emt 00:00:14]} Qb6 {[%clk 00:07:21]} {[%emt 00:00:56]} 19.
Nxe4 {[%clk 00:07:50]} {[%emt 00:00:38]} dxe4 {[%clk 00:07:16]} {[%emt
00:00:10]} 20. Qe2 {[%clk 00:07:48]} {[%emt 00:00:08]} Rd5 {[%clk 00:06:24]}
{[%emt 00:00:56]} 21. Kh1 {[%clk 00:07:47]} {[%emt 00:00:06]} Qc7 {[%clk
00:05:47]} {[%emt 00:00:42]} 22. Rg1 {[%clk 00:07:11]} {[%emt 00:00:42]} Bxd4
{[%clk 00:05:14]} {[%emt 00:00:39]} 23. cxd4 {[%clk 00:06:53]} {[%emt
00:00:22]} Rd7 {[%clk 00:02:46]} {[%emt 00:02:33]} 24. g4 {[%clk 00:06:46]}
{[%emt 00:00:13]} Kh8 {[%clk 00:01:04]} {[%emt 00:01:47]} 25. gxf5 {[%clk
00:06:13]} {[%emt 00:00:37]} exf5 {[%clk 00:01:08]} 26. Qh5 {[%clk 00:05:25]}
{[%emt 00:00:54]} Rd5 {[%emt 00:00:55]} 27. Rg5 {[%clk 00:04:29]} {[%emt
00:00:58]} Qc2 {[%clk 00:00:13]} {[%emt 00:00:14]} 28. Rdg1 {[%clk 00:04:15]}
{[%emt 00:00:18]} Qf2 {[%clk 00:00:11]} {[%emt 00:00:06]} 29. Qxh7+ {[%clk
00:03:57]} {[%emt 00:00:23]} 1-0

[Event "Rapid Tournament (RAP)"]
[Site "Biel, Switzerland"]
[Date "2026.07.12"]
[Round "6.29"]
[White "Gireada, Lucas"]
[Black "De Gregorio, Alexis"]
[Result "0-1"]
[TimeControl "15 + 5"]
[WhiteTitle "-"]
[BlackTitle "-"]
[WhiteFideId "1373544"]
[BlackFideId "1310054"]
[WhiteElo "1837"]
[BlackElo "2030"]

1. d4 {[%clk 00:15:09]} Nf6 {[%clk 00:15:07]} {[%emt 00:00:04]} 2. c4 {[%clk
00:15:12]} {[%emt 00:00:01]} e6 {[%clk 00:15:10]} {[%emt 00:00:02]} 3. Nf3
{[%clk 00:15:16]} {[%emt 00:00:01]} c5 {[%clk 00:15:13]} {[%emt 00:00:02]} 4.
d5 {[%clk 00:15:20]} {[%emt 00:00:01]} exd5 {[%clk 00:15:16]} {[%emt 00:00:02]}
5. cxd5 {[%clk 00:15:23]} {[%emt 00:00:01]} d6 {[%clk 00:15:20]} {[%emt
00:00:01]} 6. h3 {[%clk 00:15:27]} {[%emt 00:00:01]} g6 {[%clk 00:15:21]}
{[%emt 00:00:03]} 7. Nc3 {[%clk 00:15:31]} {[%emt 00:00:02]} Bg7 {[%clk
00:15:24]} {[%emt 00:00:02]} 8. e4 {[%clk 00:15:31]} {[%emt 00:00:06]} a6
{[%clk 00:15:27]} {[%emt 00:00:01]} 9. a4 {[%clk 00:15:28]} {[%emt 00:00:08]}
O-O {[%clk 00:15:29]} {[%emt 00:00:03]} 10. Bd3 {[%clk 00:15:31]} {[%emt
00:00:02]} Re8 {[%clk 00:14:14]} {[%emt 00:01:20]} 11. O-O {[%clk 00:15:30]}
{[%emt 00:00:06]} c4 {[%clk 00:14:04]} {[%emt 00:00:15]} 12. Bc2 {[%clk
00:15:20]} {[%emt 00:00:15]} Nbd7 {[%clk 00:14:06]} {[%emt 00:00:02]} 13. Bf4
{[%clk 00:15:17]} {[%emt 00:00:08]} Nc5 {[%clk 00:14:08]} {[%emt 00:00:04]} 14.
Re1 {[%clk 00:14:48]} {[%emt 00:00:34]} Nh5 {[%clk 00:13:34]} {[%emt 00:00:39]}
15. Bh2 {[%clk 00:14:36]} {[%emt 00:00:18]} Qf6 {[%clk 00:13:00]} {[%emt
00:00:38]} 16. e5 {[%clk 00:14:00]} {[%emt 00:00:41]} dxe5 {[%clk 00:12:35]}
{[%emt 00:00:31]} 17. Bxe5 {[%clk 00:13:55]} {[%emt 00:00:10]} Qb6 {[%clk
00:12:33]} {[%emt 00:00:07]} 18. Bxg7 {[%clk 00:13:52]} {[%emt 00:00:08]} Nxg7
{[%clk 00:12:08]} {[%emt 00:00:30]} 19. Rxe8+ {[%clk 00:13:40]} {[%emt
00:00:16]} Nxe8 {[%clk 00:12:12]} {[%emt 00:00:01]} 20. Rb1 {[%clk 00:11:56]}
{[%emt 00:01:50]} Bd7 {[%clk 00:11:51]} {[%emt 00:00:25]} 21. Qd4 {[%clk
00:11:36]} {[%emt 00:00:25]} Rc8 {[%clk 00:11:17]} {[%emt 00:00:39]} 22. Ne5
{[%clk 00:11:40]} {[%emt 00:00:01]} Qf6 {[%clk 00:10:30]} {[%emt 00:00:53]} 23.
Rd1 {[%clk 00:10:44]} {[%emt 00:01:01]} Nd3 {[%clk 00:10:25]} {[%emt 00:00:09]}
24. Bxd3 {[%clk 00:10:25]} {[%emt 00:00:24]} cxd3 {[%clk 00:10:27]} {[%emt
00:00:03]} 25. Rxd3 {[%clk 00:10:06]} {[%emt 00:00:24]} Bf5 {[%clk 00:10:23]}
{[%emt 00:00:10]} 26. Rf3 {[%clk 00:09:32]} {[%emt 00:00:38]} Nd6 {[%clk
00:08:59]} {[%emt 00:01:29]} 27. g4 {[%clk 00:09:11]} {[%emt 00:00:26]} Nc4
{[%clk 00:08:44]} {[%emt 00:00:20]} 28. gxf5 {[%clk 00:08:23]} {[%emt
00:00:53]} Nxe5 {[%clk 00:08:46]} {[%emt 00:00:02]} 29. Re3 {[%clk 00:08:08]}
{[%emt 00:00:21]} Nf3+ {[%clk 00:08:47]} {[%emt 00:00:04]} 30. Nb1 {[%emt
00:00:19]} 0-1

[Event "Rapid Tournament (RAP)"]
[Site "Biel, Switzerland"]
[Date "2026.07.12"]
[Round "6.30"]
[White "Moesching, Colin"]
[Black "Labrovic, Jakov"]
[Result "1-0"]
[TimeControl "15 + 5"]
[WhiteTitle "-"]
[BlackTitle "-"]
[WhiteFideId "1345036"]
[BlackFideId "14549786"]
[WhiteElo "1820"]
[BlackElo "2005"]

1. d4 {[%clk 00:15:06]} {[%emt 00:00:02]} Nf6 {[%clk 00:15:09]} {[%emt
00:00:02]} 2. Nf3 {[%clk 00:15:09]} {[%emt 00:00:02]} e6 {[%clk 00:15:10]}
{[%emt 00:00:05]} 3. g3 {[%clk 00:15:07]} {[%emt 00:00:07]} b6 {[%clk
00:15:05]} {[%emt 00:00:10]} 4. Bg2 {[%clk 00:15:06]} {[%emt 00:00:05]} Bb7
{[%clk 00:15:09]} {[%emt 00:00:01]} 5. O-O {[%clk 00:15:07]} {[%emt 00:00:05]}
d6 {[%clk 00:15:09]} {[%emt 00:00:04]} 6. c4 {[%clk 00:14:37]} {[%emt
00:00:34]} Nbd7 {[%clk 00:15:09]} {[%emt 00:00:06]} 7. Nc3 {[%clk 00:14:32]}
{[%emt 00:00:10]} Be7 {[%clk 00:15:10]} {[%emt 00:00:05]} 8. Qc2 {[%clk
00:14:19]} {[%emt 00:00:17]} O-O {[%clk 00:15:07]} {[%emt 00:00:08]} 9. e4
{[%clk 00:13:41]} {[%emt 00:00:43]} e5 {[%clk 00:14:44]} {[%emt 00:00:28]} 10.
Rd1 {[%clk 00:12:37]} {[%emt 00:01:09]} exd4 {[%clk 00:14:27]} {[%emt
00:00:23]} 11. Nxd4 {[%clk 00:12:38]} {[%emt 00:00:03]} Nc5 {[%clk 00:14:12]}
{[%emt 00:00:20]} 12. b4 {[%clk 00:11:24]} {[%emt 00:01:20]} Ne6 {[%clk
00:14:08]} {[%emt 00:00:08]} 13. e5 {[%clk 00:11:18]} {[%emt 00:00:11]} Nxd4
{[%clk 00:13:51]} {[%emt 00:00:22]} 14. Rxd4 {[%clk 00:11:09]} {[%emt
00:00:14]} Bxg2 {[%clk 00:13:53]} {[%emt 00:00:03]} 15. Kxg2 {[%clk 00:11:07]}
{[%emt 00:00:07]} Nd7 {[%clk 00:12:31]} {[%emt 00:01:28]} 16. Bf4 {[%clk
00:09:42]} {[%emt 00:01:29]} c5 {[%clk 00:12:10]} {[%emt 00:00:26]} 17. bxc5
{[%clk 00:08:59]} {[%emt 00:00:49]} bxc5 {[%clk 00:08:32]} {[%emt 00:03:43]} 18.
Rd2 {[%clk 00:08:53]} {[%emt 00:00:10]} dxe5 {[%clk 00:08:30]} {[%emt
00:00:07]} 19. Bxe5 {[%clk 00:08:36]} {[%emt 00:00:22]} Qe8 {[%clk 00:08:00]}
{[%emt 00:00:34]} 20. Bf4 {[%clk 00:08:14]} {[%emt 00:00:28]} Bf6 {[%clk
00:07:48]} {[%emt 00:00:18]} 21. Bd6 {[%clk 00:08:00]} {[%emt 00:00:18]} Ne5
{[%emt 00:02:06]} 22. Nd5 {[%clk 00:06:34]} Qc6 {[%clk 00:06:58]} {[%emt
00:00:25]} 23. Bxf8 {[%clk 00:06:14]} {[%emt 00:00:26]} Kxf8 {[%clk 00:06:44]}
{[%emt 00:00:18]} 24. Qe4 {[%clk 00:05:31]} {[%emt 00:00:49]} Nxc4 {[%clk
00:05:58]} {[%emt 00:00:51]} 25. Nxf6 {[%clk 00:05:21]} {[%emt 00:00:14]} Qxf6
{[%clk 00:05:30]} {[%emt 00:00:33]} 26. Qxa8+ {[%clk 00:05:23]} {[%emt
00:00:03]} Ke7 {[%clk 00:05:34]} 27. Qd8+ {[%clk 00:05:27]} {[%emt 00:00:01]}
Ke6 {[%clk 00:05:37]} {[%emt 00:00:02]} 28. Re1+ {[%clk 00:05:30]} {[%emt
00:00:02]} Ne5 {[%clk 00:05:41]} {[%emt 00:00:01]} 29. Qxf6+ {[%clk 00:05:31]}
{[%emt 00:00:05]} Kxf6 {[%clk 00:05:42]} {[%emt 00:00:03]} 30. Rd6+ {[%clk
00:05:34]} {[%emt 00:00:02]} Kf5 {[%clk 00:05:44]} {[%emt 00:00:03]} 31. Rd5
{[%clk 00:05:38]} {[%emt 00:00:02]} f6 {[%clk 00:05:48]} {[%emt 00:00:01]} 32.
f4 {[%clk 00:05:42]} {[%emt 00:00:01]} Ke6 {[%clk 00:05:52]} {[%emt 00:00:01]}
33. Rxc5 {[%clk 00:05:45]} {[%emt 00:00:02]} Kd6 {[%clk 00:05:55]} 34. Rcxe5
{[%clk 00:05:47]} {[%emt 00:00:03]} fxe5 {[%clk 00:05:58]} {[%emt 00:00:02]} 35.
fxe5+ {[%clk 00:05:50]} {[%emt 00:00:02]} 1-0

[Event "Rapid Tournament (RAP)"]
[Site "Biel, Switzerland"]
[Date "2026.07.12"]
[Round "6.31"]
[White "Alrefae, Ahmad"]
[Black "Laub, Patrick"]
[Result "0-1"]
[TimeControl "15 + 5"]
[WhiteTitle "-"]
[BlackTitle "-"]
[WhiteFideId "10306510"]
[BlackFideId "1302566"]
[WhiteElo "1797"]
[BlackElo "1949"]

1. e4 {[%clk 00:15:09]} c6 {[%clk 00:15:09]} {[%emt 00:00:02]} 2. d4 {[%clk
00:15:13]} {[%emt 00:00:04]} d5 {[%clk 00:15:12]} 3. e5 {[%clk 00:15:17]} Bf5
{[%clk 00:15:15]} {[%emt 00:00:02]} 4. Nc3 {[%clk 00:15:12]} {[%emt 00:00:10]}
e6 {[%clk 00:15:06]} {[%emt 00:00:14]} 5. g4 {[%clk 00:15:16]} Bg6 {[%clk
00:15:10]} {[%emt 00:00:01]} 6. Nge2 {[%clk 00:15:20]} {[%emt 00:00:01]} h6
{[%clk 00:14:32]} {[%emt 00:00:42]} 7. Be3 {[%clk 00:14:49]} {[%emt 00:00:37]}
Nd7 {[%clk 00:14:27]} {[%emt 00:00:10]} 8. Qd2 {[%clk 00:14:53]} Be7 {[%clk
00:14:26]} {[%emt 00:00:05]} 9. O-O-O {[%clk 00:14:54]} {[%emt 00:00:05]} Qa5
{[%clk 00:13:01]} {[%emt 00:01:30]} 10. f4 {[%clk 00:14:43]} {[%emt 00:00:15]}
h5 {[%clk 00:11:44]} {[%emt 00:01:23]} 11. f5 {[%clk 00:14:47]} {[%emt
00:00:01]} Bh7 {[%clk 00:11:48]} 12. h3 {[%clk 00:13:33]} {[%emt 00:01:19]}
exf5 {[%clk 00:11:12]} {[%emt 00:00:40]} 13. e6 {[%clk 00:13:30]} {[%emt
00:00:09]} fxe6 {[%clk 00:11:05]} {[%emt 00:00:11]} 14. g5 {[%clk 00:13:34]}
{[%emt 00:00:02]} O-O-O {[%clk 00:09:02]} {[%emt 00:02:07]} 15. h4 {[%clk
00:13:24]} {[%emt 00:00:15]} Bd6 {[%clk 00:08:39]} {[%emt 00:00:28]} 16. Bf4
{[%clk 00:12:58]} {[%emt 00:00:31]} Qc7 {[%clk 00:08:41]} {[%emt 00:00:03]} 17.
Bxd6 {[%clk 00:12:56]} {[%emt 00:00:07]} Qxd6 {[%clk 00:08:44]} {[%emt
00:00:02]} 18. Nf4 {[%clk 00:12:56]} {[%emt 00:00:05]} Ne7 {[%clk 00:08:34]}
{[%emt 00:00:14]} 19. Nxh5 {[%clk 00:12:45]} {[%emt 00:00:18]} e5 {[%clk
00:07:50]} {[%emt 00:00:49]} 20. dxe5 {[%clk 00:12:19]} {[%emt 00:00:30]} Nxe5
{[%clk 00:07:00]} {[%emt 00:00:55]} 21. Qd4 {[%clk 00:11:20]} {[%emt 00:01:04]}
c5 {[%clk 00:06:11]} {[%emt 00:00:55]} 22. Qa4 {[%clk 00:11:23]} {[%emt
00:00:02]} Kb8 {[%clk 00:06:07]} {[%emt 00:00:09]} 23. Bg2 {[%clk 00:11:02]}
{[%emt 00:00:26]} d4 {[%clk 00:05:56]} {[%emt 00:00:16]} 24. Nf4 {[%clk
00:10:57]} {[%emt 00:00:09]} N5c6 {[%clk 00:05:17]} {[%emt 00:00:44]} 25. Nce2
{[%clk 00:10:48]} {[%emt 00:00:15]} Bg8 {[%clk 00:04:59]} {[%emt 00:00:22]} 26.
Kb1 {[%clk 00:10:09]} {[%emt 00:00:44]} Nd5 {[%clk 00:04:43]} {[%emt 00:00:22]}
27. Rdf1 {[%clk 00:09:23]} {[%emt 00:00:51]} Ne3 {[%clk 00:04:28]} {[%emt
00:00:20]} 28. Rf2 {[%emt 00:00:30]} Nb4 {[%clk 00:04:20]} {[%emt 00:00:11]} 29.
h5 {[%clk 00:08:29]} {[%emt 00:00:36]} Bxa2+ {[%clk 00:04:04]} {[%emt
00:00:21]} 30. Kc1 {[%clk 00:08:25]} {[%emt 00:00:08]} Nxg2 {[%clk 00:03:41]}
{[%emt 00:00:28]} 31. Rxg2 {[%clk 00:08:17]} {[%emt 00:00:13]} Bd5 {[%clk
00:03:30]} {[%emt 00:00:17]} 32. Nxd5 {[%clk 00:08:20]} {[%emt 00:00:02]} Qxd5
{[%clk 00:03:31]} {[%emt 00:00:04]} 33. Nf4 {[%clk 00:08:15]} {[%emt 00:00:10]}
Qf3 {[%clk 00:03:21]} {[%emt 00:00:15]} 34. Qb5 {[%clk 00:07:41]} {[%emt
00:00:39]} Qxf4+ {[%clk 00:03:07]} {[%emt 00:00:19]} 35. Kb1 {[%clk 00:07:45]}
Qe4 {[%clk 00:02:55]} {[%emt 00:00:16]} 36. Rhg1 {[%clk 00:07:24]} {[%emt
00:00:28]} d3 {[%clk 00:02:40]} {[%emt 00:00:20]} 37. cxd3 {[%clk 00:07:18]}
{[%emt 00:00:11]} Rxd3 {[%clk 00:02:04]} {[%emt 00:00:41]} 38. Ka1 {[%clk
00:07:07]} {[%emt 00:00:16]} Qd4 {[%clk 00:02:07]} 39. Qa4 {[%emt 00:00:31]}
Rd8 {[%clk 00:01:56]} 40. Rb1 {[%clk 00:06:46]} {[%emt 00:00:16]} Rd6 {[%clk
00:01:35]} {[%emt 00:00:27]} 41. Qe8+ {[%clk 00:06:43]} {[%emt 00:00:08]} Kc7
{[%clk 00:01:39]} 42. Qe7+ {[%clk 00:06:27]} {[%emt 00:00:21]} Rd7 {[%clk
00:01:42]} {[%emt 00:00:03]} 43. Qe6 {[%clk 00:06:21]} {[%emt 00:00:11]} Ra3+
{[%clk 00:01:44]} {[%emt 00:00:03]} 0-1

[Event "Rapid Tournament (RAP)"]
[Site "Biel, Switzerland"]
[Date "2026.07.12"]
[Round "6.32"]
[White "Hashem, Khaled"]
[Black "Yang, Sung-Jui"]
[Result "1/2-1/2"]
[TimeControl "15 + 5"]
[WhiteTitle "-"]
[BlackTitle "-"]
[WhiteFideId "10300201"]
[BlackFideId "16301048"]
[WhiteElo "1926"]
[BlackElo "1825"]

1. d4 {[%clk 00:15:06]} {[%emt 00:00:04]} d5 {[%clk 00:14:52]} {[%emt
00:00:12]} 2. Nf3 {[%clk 00:15:09]} {[%emt 00:00:08]} Nf6 {[%clk 00:14:56]}
{[%emt 00:00:01]} 3. g3 {[%clk 00:15:13]} e6 {[%clk 00:14:53]} {[%emt
00:00:08]} 4. Bg2 {[%clk 00:15:17]} {[%emt 00:00:01]} Be7 {[%clk 00:14:57]}
{[%emt 00:00:01]} 5. c4 {[%clk 00:15:17]} {[%emt 00:00:04]} O-O {[%clk
00:14:57]} {[%emt 00:00:05]} 6. O-O {[%clk 00:15:20]} {[%emt 00:00:03]} dxc4
{[%clk 00:15:01]} {[%emt 00:00:02]} 7. Ne5 {[%clk 00:15:22]} {[%emt 00:00:02]}
Nc6 {[%clk 00:15:05]} {[%emt 00:00:01]} 8. Nxc6 {[%clk 00:13:52]} {[%emt
00:01:36]} bxc6 {[%clk 00:15:08]} {[%emt 00:00:01]} 9. Qa4 {[%clk 00:13:49]}
{[%emt 00:00:07]} Qxd4 {[%clk 00:13:49]} {[%emt 00:01:25]} 10. Nc3 {[%clk
00:13:53]} {[%emt 00:00:01]} Rb8 {[%clk 00:13:21]} {[%emt 00:00:33]} 11. Rd1
{[%clk 00:13:11]} {[%emt 00:00:46]} Qb6 {[%clk 00:12:53]} {[%emt 00:00:33]} 12.
Qxc4 {[%clk 00:12:36]} {[%emt 00:00:40]} Ba6 {[%clk 00:11:50]} {[%emt
00:01:09]} 13. Qxc6 {[%clk 00:11:24]} {[%emt 00:01:17]} Qxc6 {[%clk 00:10:29]}
{[%emt 00:01:26]} 14. Bxc6 {[%clk 00:11:27]} {[%emt 00:00:02]} Rfd8 {[%clk
00:10:32]} 15. Rxd8+ {[%clk 00:10:42]} {[%emt 00:00:50]} Bxd8 {[%clk 00:10:36]}
{[%emt 00:00:02]} 16. b3 {[%clk 00:10:38]} {[%emt 00:00:09]} Bb7 {[%clk
00:09:37]} {[%emt 00:01:03]} 17. Bxb7 {[%clk 00:10:08]} {[%emt 00:00:36]} Rxb7
{[%clk 00:09:41]} 18. Ba3 {[%clk 00:06:57]} {[%emt 00:03:16]} c6 {[%clk
00:09:35]} {[%emt 00:00:11]} 19. Rd1 {[%clk 00:06:52]} {[%emt 00:00:09]} Rd7
{[%clk 00:08:59]} {[%emt 00:00:41]} 20. Rxd7 {[%clk 00:06:42]} {[%emt
00:00:16]} Nxd7 {[%clk 00:09:03]} {[%emt 00:00:02]} 21. Ne4 {[%clk 00:06:45]}
Bb6 {[%clk 00:08:45]} {[%emt 00:00:23]} 22. e3 {[%clk 00:06:30]} {[%emt
00:00:19]} a6 {[%clk 00:04:44]} {[%emt 00:04:07]} 23. Kf1 {[%clk 00:06:31]}
{[%emt 00:00:04]} f5 {[%clk 00:04:45]} {[%emt 00:00:04]} 24. Nd2 {[%clk
00:06:04]} {[%emt 00:00:32]} Kf7 {[%clk 00:04:43]} {[%emt 00:00:06]} 25. Ke2
{[%clk 00:06:08]} {[%emt 00:00:01]} Ne5 {[%clk 00:04:35]} {[%emt 00:00:14]} 26.
h3 {[%clk 00:05:20]} {[%emt 00:00:53]} h5 {[%clk 00:04:15]} {[%emt 00:00:25]}
27. f4 {[%clk 00:04:49]} {[%emt 00:00:36]} Nd7 {[%clk 00:04:19]} {[%emt
00:00:02]} 28. Nc4 {[%clk 00:04:52]} {[%emt 00:00:01]} Bc7 {[%clk 00:04:22]}
{[%emt 00:00:02]} 29. Bd6 {[%clk 00:03:53]} {[%emt 00:01:04]} Bd8 {[%clk
00:03:41]} {[%emt 00:00:46]} 30. Kf3 {[%clk 00:03:40]} {[%emt 00:00:18]} g6
{[%clk 00:03:27]} {[%emt 00:00:19]} 31. e4 {[%clk 00:02:59]} {[%emt 00:00:46]}
Be7 {[%clk 00:02:01]} {[%emt 00:01:31]} 32. Ne5+ {[%clk 00:01:51]} {[%emt
00:01:12]} Nxe5+ {[%clk 00:02:02]} {[%emt 00:00:05]} 33. Bxe5 {[%clk 00:01:55]}
{[%emt 00:00:01]} Bc5 {[%clk 00:01:55]} {[%emt 00:00:12]} 34. g4 {[%clk
00:01:52]} {[%emt 00:00:08]} Ke8 {[%clk 00:01:37]} {[%emt 00:00:23]} 35. exf5
{[%clk 00:01:27]} {[%emt 00:00:30]} exf5 {[%clk 00:01:40]} {[%emt 00:00:02]} 36.
gxh5 {[%clk 00:01:28]} {[%emt 00:00:04]} gxh5 {[%clk 00:01:43]} 37. Kg3 {[%clk
00:01:32]} {[%emt 00:00:02]} Be7 {[%clk 00:01:47]} 38. Kf3 {[%clk 00:01:07]}
{[%emt 00:00:30]} Kd7 {[%clk 00:01:50]} {[%emt 00:00:02]} 39. Ke3 {[%clk
00:01:11]} Ke6 {[%clk 00:01:52]} {[%emt 00:00:03]} 40. Kd4 {[%clk 00:01:14]}
{[%emt 00:00:02]} Ba3 {[%clk 00:01:38]} {[%emt 00:00:18]} 41. Kc4 {[%clk
00:01:17]} {[%emt 00:00:02]} Be7 {[%clk 00:01:19]} {[%emt 00:00:25]} 42. Bd4
{[%clk 00:01:13]} {[%emt 00:00:09]} Bd6 {[%clk 00:01:19]} {[%emt 00:00:05]} 43.
Be3 {[%clk 00:01:12]} {[%emt 00:00:06]} Kf6 {[%clk 00:01:02]} {[%emt 00:00:22]}
44. a4 {[%clk 00:00:34]} {[%emt 00:00:43]} Ke6 {[%clk 00:01:05]} {[%emt
00:00:02]} 1/2-1/2